bitfinex-derivatives/quotes_BTCF0:USTF0_20251002
["timestamp","ask_amount","ask_price","bid_price","bid_amount"]
[1759421476194,4.05919075,120170.0,120160.0,0.1011681]
[1759421476393,4.83415075,120170.0,120160.0,0.0831681]
[1759421476694,4.83419075,120170.0,120160.0,0.1111681]
[1759421477095,4.48559,120170.0,120160.0,0.1111681]
[1759421477291,4.05919075,120170.0,120160.0,0.1111681]
[1759421477496,4.05919075,120170.0,120160.0,0.13378093]
[1759421477693,3.65919075,120170.0,120160.0,0.13378093]
[1759421477893,3.31059,120170.0,120160.0,0.13378093]
[1759421478090,2.53371,120170.0,120160.0,0.22413877]
[1759421478296,2.5056276,120170.0,120160.0,0.20209692]
[1759421478497,2.4626389,120170.0,120160.0,0.58089692]
[1759421478694,0.02218,120170.0,120160.0,1.08011582]
[1759421478897,3.5963344,120170.0,120160.0,0.16881878]
[1759421479092,3.54493515,120170.0,120160.0,0.1171681]
[1759421479298,2.4194544,120170.0,120160.0,0.22242485]
[1759421479497,0.01331,120170.0,120160.0,0.31255738]
[1759421479692,3.53878925,120170.0,120160.0,0.22933848]
[1759421479897,4.67508925,120170.0,120160.0,0.034]
[1759421480204,3.9557544,120170.0,120160.0,0.117168]
[1759421480398,4.67508925,120170.0,120160.0,0.117168]
[1759421480599,4.67508925,120170.0,120140.0,0.02203785]
[1759421480600,0.03549,120150.0,120140.0,0.02203785]
[1759421480800,4.52054125,120150.0,120130.0,0.02961283]
[1759421480998,4.15970125,120140.0,120130.0,0.0831847]
[1759421481198,0.03549,120100.0,120090.0,0.06744204]
[1759421481399,2.66287228,120100.0,120090.0,0.0832164]
[1759421481703,2.2801064,120100.0,120090.0,0.79261715]
[1759421482004,0.01331,120110.0,120100.0,0.0832095]
[1759421482198,0.01331,120110.0,120100.0,1.60965025]
[1759421482199,1e-07,120110.0,120100.0,1.60965025]
[1759421482401,0.01331,120130.0,120120.0,0.0831957]
[1759421482605,0.74489075,120130.0,120120.0,0.0831957]
[1759421482804,2.9596471,120130.0,120120.0,0.0831957]
[1759421483002,0.01331,120140.0,120120.0,0.1058957]
[1759421483306,0.03549,120150.0,120140.0,0.1058818]
[1759421483497,0.74489075,120150.0,120140.0,0.0831818]
[1759421483802,4.08788785,120150.0,120140.0,0.0831818]
[1759421483994,2.9596471,120150.0,120140.0,0.0831818]
[1759421484195,4.08784785,120150.0,120140.0,0.0831818]
[1759421484399,4.08784785,120150.0,120110.0,0.3608]
[1759421484598,3.31403785,120120.0,120110.0,0.0832026]
[1759421484805,3.7461171,120120.0,120110.0,0.0832026]
[1759421485200,4.49471785,120120.0,120080.0,0.85210655]
[1759421485396,2.6707564,120090.0,120080.0,0.08329627]
[1759421485597,2.6065171,120090.0,120080.0,0.08329627]
[1759421485899,4.48668948,120090.0,120080.0,7.287e-05]
[1759421486400,3.70592948,120090.0,120080.0,0.08329627]
[1759421486698,3.70592948,120090.0,120080.0,0.10962627]
[1759421486699,2.59652873,120090.0,120080.0,0.10962627]
[1759421486900,3.70592948,120090.0,120080.0,0.08329627]
[1759421487199,0.04316,120070.0,120060.0,0.14264633]
[1759421487401,0.04316,120070.0,120060.0,0.16897633]
[1759421487402,2.9673171,120070.0,120060.0,0.16897633]
[1759421487605,2.9673171,120070.0,120060.0,0.1095632]
[1759421487901,0.40396,120070.0,120060.0,0.1095632]
[1759421488202,0.37665,120070.0,120060.0,0.1095632]
[1759421488396,9.737e-05,120080.0,120070.0,0.1095603]
[1759421488597,9.737e-05,120080.0,120070.0,0.51164596]
[1759421488796,9.737e-05,120080.0,120070.0,1.36531295]
[1759421488998,9.737e-05,120080.0,120070.0,2.23835116]
[1759421489202,9.737e-05,120080.0,120070.0,0.20242729]
[1759421489406,9.737e-05,120080.0,120070.0,0.98406729]
[1759421489605,0.04325737,120080.0,120070.0,1.38406729]
[1759421489902,9.737e-05,120080.0,120070.0,2.21216965]
[1759421490102,2.96741447,120080.0,120070.0,0.0912303]
[1759421490296,2.96741447,120080.0,120070.0,0.0932303]
[1759421490599,3.85272353,120080.0,120070.0,0.01]
[1759421490802,2.96741447,120080.0,120070.0,0.0932303]
[1759421491003,2.96741447,120080.0,120070.0,0.52164596]
[1759421491004,2.28274377,120080.0,120070.0,0.52164596]
[1759421491306,9.737e-05,120080.0,120070.0,0.60111089]
[1759421491503,9.737e-05,120080.0,120070.0,0.96991089]
[1759421491705,9.737e-05,120080.0,120070.0,0.60911089]
[1759421492017,9.737e-05,120080.0,120070.0,1.39944089]
[1759421492200,9.737e-05,120080.0,120070.0,0.20702523]
[1759421492503,9.737e-05,120080.0,120070.0,1.34966523]
[1759421492716,9.737e-05,120080.0,120070.0,1.75175089]
[1759421492899,9.737e-05,120080.0,120070.0,1.34966523]
[1759421493099,9.737e-05,120080.0,120070.0,1.34366523]
[1759421493406,0.04325737,120080.0,120070.0,0.98486523]
[1759421493607,2.96741447,120080.0,120070.0,0.8953203]
[1759421493907,2.96741447,120080.0,120070.0,0.8913203]
[1759421494109,2.96741447,120080.0,120070.0,0.8933203]
[1759421494406,3.36950013,120080.0,120070.0,0.0852303]
[1759421494603,3.36950013,120080.0,120070.0,0.0832303]
[1759421494797,2.96741447,120080.0,120070.0,0.0852303]
[1759421494997,3.36950013,120080.0,120070.0,0.0852303]
[1759421495602,3.36950013,120080.0,120070.0,0.002]
[1759421495799,0.04316,120040.0,120030.0,0.16899653]
[1759421496007,4.0428401,120040.0,120030.0,0.0832534]
[1759421496205,3.3458001,120040.0,120030.0,0.0832534]
[1759421496410,3.4290512,120040.0,120030.0,0.0832581]
[1759421496603,0.0991081,120030.0,120020.0,0.083265]
[1759421496804,4.20748871,120030.0,120020.0,0.083265]
[1759421496998,4.20740871,120030.0,120020.0,0.083265]
[1759421497201,4.12451061,120030.0,120020.0,0.083265]
[1759421497406,0.01585,120020.0,120010.0,0.0832681]
[1759421497608,3.42528394,120020.0,120000.0,0.05941313]
[1759421497907,0.01585,120000.0,119990.0,0.0832858]
[1759421498108,3.04553206,120000.0,119980.0,0.08338838]
[1759421498410,3.36149008,119990.0,119980.0,0.09486495]
[1759421498604,3.34584008,119990.0,119980.0,0.51219061]
[1759421498806,2.57913008,119990.0,119980.0,0.08338838]
[1759421499007,2.57913008,119990.0,119980.0,0.44418838]
[1759421499411,2.57913008,119990.0,119980.0,0.08338838]
[1759421499412,2.56328008,119990.0,119980.0,0.08338838]
[1759421499610,2.92408008,119990.0,119980.0,0.08338838]
[1759421499814,2.93993008,119990.0,119980.0,0.08338838]
[1759421500012,0.65728368,119990.0,119980.0,0.08338838]
[1759421500207,2.92408008,119990.0,119980.0,0.08338838]
[1759421500413,2.92708008,119990.0,119980.0,0.08338838]
[1759421500614,3.70960008,119990.0,119980.0,0.08438838]
[1759421500812,4.12753574,119990.0,119980.0,0.08438838]
[1759421501018,4.61090519,119990.0,119980.0,0.08439128]
[1759421501219,0.29956733,119990.0,119980.0,0.58129899]
[1759421501517,8.365e-05,119990.0,119980.0,1.32962069]
[1759421501716,0.36088365,119990.0,119980.0,0.16673503]
[1759421501919,2.93801373,119990.0,119980.0,0.08339128]
[1759421502320,2.94101373,119990.0,119980.0,0.08339128]
[1759421502521,2.93801373,119990.0,119980.0,0.08339128]
[1759421502813,3.34219201,119990.0,119980.0,0.08339128]
[1759421503015,2.92425635,119990.0,119980.0,0.08339128]
[1759421503214,0.00209262,119990.0,119980.0,1.3528581]
[1759421503416,9.262e-05,119990.0,119980.0,1.43620185]
[1759421503613,9.262e-05,119990.0,119980.0,1.43720185]
[1759421504020,9.262e-05,119990.0,119980.0,1.43820185]
[1759421504224,2e-08,119990.0,119980.0,1.43820185]
[1759421504417,0.3608,120020.0,120010.0,0.0985119]
[1759421504613,0.01585,120040.0,120030.0,0.083258]
[1759421504614,0.3608,120040.0,120030.0,0.083258]
[1759421505312,0.3608,120060.0,120050.0,0.0832442]
[1759421505509,0.65728368,120060.0,120050.0,0.48532986]
[1759421505810,2.12188083,120060.0,120050.0,2.13938384]
[1759421506017,0.37665,120100.0,120090.0,0.0832165]
[1759421506219,0.67313368,120100.0,120090.0,0.0832165]
[1759421506419,0.3608,120100.0,120090.0,0.48530216]
[1759421506624,0.3608,120100.0,120090.0,0.57939305]
[1759421506818,0.3608,120120.0,120110.0,0.0832026]
[1759421507118,2.44413531,120120.0,120110.0,0.48528826]
[1759421507325,1.78685163,120120.0,120110.0,0.0832026]
[1759421507724,0.3608,120130.0,120120.0,0.0831957]
[1759421507911,0.65728368,120130.0,120120.0,1.26980136]
[1759421508224,0.3608,120140.0,120130.0,0.0831887]
[1759421508422,0.67313368,120140.0,120130.0,0.0831887]
[1759421508619,3.22287097,120140.0,120130.0,0.0831887]
[1759421509222,3.62287097,120140.0,120130.0,0.0831887]
[1759421509623,4.40723097,120140.0,120130.0,0.0831887]
[1759421509926,4.40923097,120140.0,120130.0,0.0831887]
[1759421510116,0.01585,120130.0,120120.0,0.0831923]
[1759421510323,0.31233368,120120.0,120110.0,0.0831973]
[1759421510519,2.45998531,120120.0,120110.0,0.0831973]
[1759421510722,2.86207097,120120.0,120110.0,0.0831973]
[1759421511325,4.04619097,120120.0,120110.0,0.0831973]
[1759421511524,0.01585,120110.0,120100.0,0.0832069]
[1759421511827,2.86207097,120110.0,120100.0,0.0832069]
[1759421512021,0.3608,120110.0,120100.0,0.51461215]
[1759421512228,0.37865,120120.0,120110.0,0.0832026]
[1759421512419,2.16550163,120120.0,120110.0,0.0832026]
[1759421512618,2.16550163,120120.0,120100.0,0.11252909]
[1759421512619,0.01585,120110.0,120100.0,0.11252909]
[1759421512927,2.86407097,120110.0,120100.0,0.11252909]
[1759421513725,2.86507097,120110.0,120100.0,0.11252909]
[1759421513922,2.46298531,120110.0,120100.0,0.11252909]
[1759421514133,2.46498531,120110.0,120100.0,0.11252909]
[1759421514322,3.26707097,120110.0,120100.0,0.0832095]
[1759421514529,0.01585,120100.0,120090.0,0.11253369]
[1759421514736,2.45998531,120100.0,120090.0,0.11253369]
[1759421516134,2.44613531,120100.0,120090.0,0.11253369]
[1759421516834,0.3608,120100.0,120090.0,0.51461935]
[1759421517034,0.3608,120100.0,120090.0,0.51561935]
[1759421517237,0.3608,120100.0,120090.0,0.95975725]
[1759421517433,0.3608,120100.0,120090.0,0.94705766]
[1759421517637,0.3608,120110.0,120100.0,0.0832095]
[1759421517833,0.3608,120110.0,120100.0,1.31537434]
[1759421518040,0.3608,120120.0,120110.0,0.0832026]
[1759421518242,2.44413531,120120.0,120110.0,0.48528826]
[1759421518838,2.44413531,120120.0,120110.0,0.16645614]
[1759421519040,2.08333531,120120.0,120110.0,0.5685418]
[1759421519541,2.44413531,120120.0,120110.0,1.3525818]
[1759421519741,2.44413531,120120.0,120110.0,1.3523818]
[1759421519941,2.44413531,120120.0,120110.0,1.3533818]
[1759421520239,0.3608,120130.0,120120.0,0.0831957]
[1759421520443,0.3608,120130.0,120120.0,0.48528136]
[1759421520646,0.29648368,120130.0,120120.0,0.48528136]
[1759421520938,1.78685163,120140.0,120130.0,0.0831887]
[1759421521133,0.37627,120160.0,120150.0,0.0831749]
[1759421521334,0.37627,120160.0,120150.0,0.48526056]
[1759421521539,0.37627,120170.0,120160.0,0.083168]
[1759421521743,0.37627,120180.0,120170.0,0.083161]
[1759421521744,0.01547,120180.0,120170.0,0.083161]
[1759421522040,2.09880531,120180.0,120170.0,0.48474666]
[1759421522636,2.08333531,120180.0,120170.0,0.48474666]
[1759421523142,0.42352256,120200.0,120190.0,0.0831472]
[1759421523333,0.76148951,120200.0,120190.0,0.0831472]
[1759421523537,2.9504268,120200.0,120190.0,0.0831472]
[1759421523740,3.3504268,120200.0,120190.0,0.0831472]
[1759421523951,3.7346668,120200.0,120190.0,0.0831472]
[1759421524443,2.56834114,120200.0,120190.0,0.0841472]
[1759421524851,2.54834114,120200.0,120190.0,0.0831472]
[1759421525050,2.9504268,120200.0,120190.0,0.0831472]
[1759421525354,3.3504268,120200.0,120190.0,0.0831472]
[1759421525552,2.54834114,120200.0,120190.0,0.0831472]
[1759421525950,2.53287114,120200.0,120190.0,0.0831472]
[1759421526149,0.44953583,120200.0,120190.0,0.48523286]
[1759421526359,0.08873583,120200.0,120190.0,1.07389616]
[1759421526545,0.08873583,120200.0,120190.0,1.09960408]
[1759421526750,0.08873583,120200.0,120190.0,2.28584974]
[1759421526949,0.08873583,120200.0,120190.0,2.28684974]
[1759421527149,0.03284966,120200.0,120190.0,1.50268974]
[1759421527350,6e-08,120200.0,120190.0,2.6888154]
[1759421527550,0.3608,120230.0,120220.0,0.0831265]
[1759421527551,0.77835566,120230.0,120220.0,0.0831265]
[1759421527746,0.03378256,120230.0,120220.0,0.8672465]
[1759421527949,2.11711787,120230.0,120220.0,0.0831265]
[1759421528144,2.11711787,120230.0,120220.0,0.67464014]
[1759421528145,0.01831256,120230.0,120220.0,0.67464014]
[1759421528344,0.01831256,120230.0,120220.0,1.8612058]
[1759421528555,0.01831256,120230.0,120220.0,2.2219258]
[1759421528854,0.3608,120270.0,120250.0,0.01662]
[1759421529054,0.3608,120280.0,120270.0,0.0830919]
[1759421529355,1.78685163,120280.0,120270.0,0.48517756]
[1759421529545,0.37936122,120290.0,120280.0,0.099705]
[1759421529859,0.32353472,120320.0,120280.0,2.60707249]
[1759421530054,0.39215148,120340.0,120320.0,0.0830574]
[1759421530353,0.38459411,120340.0,120330.0,1.68751616]
[1759421530652,0.39959415,120340.0,120330.0,0.0830505]
[1759421530848,0.38412415,120340.0,120330.0,0.66287496]
[1759421531052,0.36202878,120340.0,120330.0,0.27288642]
[1759421531258,2.4795298,120340.0,120330.0,0.01209712]
[1759421531555,2.48615517,120340.0,120330.0,0.17824896]
[1759421531751,2.84744975,120340.0,120330.0,0.26630694]
[1759421531952,2.86083409,120340.0,120330.0,0.01209712]
[1759421532160,0.0985278,120320.0,120290.0,0.0830755]
[1759421532357,2.14765163,120300.0,120290.0,0.0830755]
[1759421532553,2.14765163,120300.0,120290.0,0.16617684]
[1759421532754,0.3608,120310.0,120300.0,0.0830712]
[1759421532962,0.675667,120310.0,120300.0,0.0830712]
[1759421533254,2.85462775,120310.0,120300.0,0.0830712]
[1759421533452,2.45254209,120310.0,120290.0,0.0830757]
[1759421533759,2.43415877,120300.0,120290.0,0.0830781]
[1759421533953,1.77687509,120300.0,120290.0,0.57303861]
[1759421534150,0.37918332,120310.0,120300.0,0.0830712]
[1759421534360,0.01838332,120310.0,120300.0,0.50177686]
[1759421534557,0.01838332,120310.0,120300.0,1.79069162]
[1759421534759,0.01838332,120310.0,120300.0,2.15149162]
[1759421534962,0.01838332,120310.0,120300.0,2.23461368]
[1759421535257,0.01838332,120310.0,120300.0,1.04169368]
[1759421535461,0.01547,120300.0,120280.0,0.083081]
[1759421535657,2.53976075,120290.0,120280.0,0.083085]
[1759421535854,0.04048342,120310.0,120300.0,0.0830712]
[1759421536061,0.01838332,120310.0,120300.0,0.0880712]
[1759421536267,0.37918332,120310.0,120300.0,0.18306367]
[1759421536563,2.15605841,120310.0,120300.0,0.18306367]
[1759421536760,1.79525841,120310.0,120300.0,1.02407139]
[1759421536964,1.79525841,120310.0,120300.0,0.66327139]
[1759421537258,1.79525841,120310.0,120300.0,0.26118573]
[1759421537464,0.01838332,120310.0,120300.0,1.42907139]
[1759421537659,0.01838332,120310.0,120300.0,1.02698573]
[1759421537868,0.01838332,120310.0,120300.0,1.44569139]
[1759421538462,1.79525841,120310.0,120300.0,0.26118573]
[1759421538666,3.35979215,120310.0,120300.0,0.005]
[1759421538854,3.27672785,120310.0,120300.0,0.005]
[1759421539061,2.47464219,120310.0,120300.0,0.0880712]
[1759421539266,2.47464219,120310.0,120300.0,0.005]
[1759421539464,3.35979215,120310.0,120300.0,0.005]
[1759421539768,0.01547,120280.0,120260.0,0.42723607]
[1759421539969,1.77687509,120270.0,120260.0,0.51033417]
[1759421540172,2.07335877,120270.0,120260.0,0.59345623]
[1759421540471,0.01547,120260.0,120230.0,6.918e-05]
[1759421540661,2.15628231,120240.0,120230.0,0.08318388]
[1759421540857,1.79548231,120240.0,120230.0,0.16633359]
[1759421541060,0.01860722,120240.0,120230.0,1.48954212]
[1759421541261,0.59888,120270.0,120260.0,0.0830978]
[1759421541460,0.59888,120270.0,120260.0,0.1130978]
[1759421541661,0.3608,120280.0,120260.0,0.51518346]
[1759421541858,0.3608,120290.0,120280.0,0.0830844]
[1759421542060,0.65728368,120290.0,120280.0,0.0830844]
[1759421542263,2.83624443,120290.0,120270.0,0.79032]
[1759421542463,2.07335877,120280.0,120270.0,0.0830913]
[1759421542769,2.0633818,120280.0,120270.0,0.56832667]
[1759421543160,0.3608,120290.0,120280.0,0.0830846]
[1759421543670,2.4241818,120290.0,120280.0,0.0830846]
[1759421543874,2.4241818,120290.0,120280.0,0.0860846]
[1759421544062,2.4241818,120290.0,120280.0,0.09907537]
[1759421544264,2.4241818,120290.0,120280.0,0.01599077]
[1759421544568,2.4241818,120290.0,120270.0,0.006]
[1759421544569,0.0830846,120280.0,120270.0,0.006]
[1759421544766,4.11564206,120280.0,120270.0,0.01899214]
[1759421544971,3.2306718,120280.0,120270.0,0.01899214]
[1759421545673,3.2306718,120280.0,120270.0,0.01299214]
[1759421545674,3.2308718,120280.0,120270.0,0.01299214]
[1759421545873,2.4241818,120280.0,120270.0,0.09608364]
[1759421546864,2.0663818,120280.0,120270.0,0.4981693]
[1759421547175,0.003,120280.0,120270.0,1.43546591]
[1759421547363,0.003,120280.0,120270.0,0.67466591]
[1759421547562,0.02218104,120290.0,120280.0,0.0830846]
[1759421548068,2.0633818,120290.0,120280.0,0.0830846]
[1759421548283,0.02218104,120290.0,120280.0,1.42461044]
[1759421548572,0.02218104,120300.0,120290.0,0.0830777]
[1759421548773,2.08556284,120300.0,120290.0,0.0830777]
[1759421548965,2.44636284,120300.0,120290.0,0.48516336]
[1759421549170,2.08556284,120300.0,120290.0,0.56829924]
[1759421549374,2.08556284,120300.0,120290.0,0.92909924]
[1759421549674,4e-08,120300.0,120290.0,2.21496213]
[1759421549870,0.0294635,120320.0,120300.0,0.01584]
[1759421550066,0.0294635,120320.0,120310.0,1.2339839]
[1759421550263,0.0294635,120330.0,120320.0,0.083057]
[1759421550470,0.40672243,120340.0,120330.0,0.0830501]
[1759421550674,2.10930423,120340.0,120330.0,0.43099949]
[1759421550871,0.04592243,120340.0,120330.0,1.73770387]
[1759421551075,0.00122878,120340.0,120330.0,1.47286272]
[1759421551270,2.0943134,120340.0,120330.0,0.23136001]
[1759421551576,2.06461058,120340.0,120330.0,1.02148001]
[1759421552073,2.48110423,120340.0,120330.0,1.02148001]
[1759421552267,2.12030423,120340.0,120330.0,1.02148001]
[1759421552464,2.48110423,120340.0,120330.0,1.02148001]
[1759421552665,2.47010423,120340.0,120330.0,1.02116001]
[1759421552862,2.49738423,120340.0,120330.0,0.0830501]
[1759421553477,2.98042773,120340.0,120320.0,0.0830546]
[1759421553670,0.01628,120320.0,120290.0,0.3608]
[1759421553874,1.77687509,120300.0,120290.0,0.79182709]
[1759421554067,0.28650671,120310.0,120300.0,0.16617214]
[1759421554269,0.31623628,120310.0,120300.0,0.49888451]
[1759421554670,0.02972957,120320.0,120310.0,0.0830639]
[1759421554973,0.67703628,120320.0,120310.0,0.0830639]
[1759421555174,2.44393642,120320.0,120310.0,0.0830639]
[1759421555370,2.8751805,120320.0,120300.0,0.0830657]
[1759421555570,2.08317289,120310.0,120300.0,0.8725457]
[1759421556074,2.44397289,120310.0,120300.0,0.0830657]
[1759421556273,2.4589005,120310.0,120300.0,0.0830657]
[1759421556475,2.0981005,120310.0,120300.0,0.0840657]
[1759421556676,2.08319758,120310.0,120300.0,0.54097295]
[1759421557173,2.05340685,120310.0,120300.0,0.24681288]
[1759421557376,2.41420685,120310.0,120300.0,0.95293427]
[1759421557582,2.0981005,120310.0,120300.0,1.30088366]
[1759421558078,2.0981005,120310.0,120300.0,0.95293427]
[1759421558283,2.4589005,120310.0,120300.0,0.09705434]
[1759421558474,4.03406014,120310.0,120300.0,0.01398864]
[1759421558675,0.01628,120300.0,120280.0,0.0830845]
[1759421558884,0.3906314,120290.0,120280.0,0.0830808]
[1759421559079,2.08323825,120290.0,120280.0,0.43103019]
[1759421559282,2.08323825,120290.0,120280.0,0.79183019]
[1759421559475,2.05340685,120290.0,120280.0,0.79183019]
[1759421559781,2.05340685,120290.0,120280.0,1.36900804]
[1759421559974,2.05340685,120290.0,120280.0,0.58012804]
[1759421560175,2.05340685,120290.0,120280.0,1.03648468]
[1759421560374,2.40423364,120290.0,120280.0,0.22353841]
[1759421560673,2.40423364,120290.0,120280.0,0.21653841]
[1759421560877,3.39568303,120290.0,120280.0,0.07297579]
[1759421561077,3.53081144,120290.0,120280.0,0.0970847]
[1759421561273,2.65933364,120290.0,120280.0,0.14119894]
[1759421561480,3.04769364,120290.0,120280.0,0.14119894]
[1759421561778,2.25933364,120290.0,120280.0,0.14119894]
[1759421561979,2.70325364,120290.0,120280.0,0.0970847]
[1759421562171,3.06405364,120290.0,120280.0,0.0970847]
[1759421562483,3.06405364,120290.0,120280.0,0.14116494]
[1759421562679,2.25933364,120290.0,120280.0,0.48911433]
[1759421562979,0.37708,120300.0,120280.0,0.48911433]
[1759421562980,0.3608,120300.0,120290.0,0.0830778]
[1759421563181,0.3608,120300.0,120290.0,0.47510513]
[1759421563182,2.12770014,120300.0,120290.0,0.47510513]
[1759421563377,2.12770014,120300.0,120290.0,0.56829096]
[1759421563578,2.27561364,120300.0,120290.0,0.12715574]
[1759421563974,2.63641364,120300.0,120290.0,0.12715574]
[1759421564277,2.27561364,120300.0,120290.0,0.12715574]
[1759421564484,3.46743403,120300.0,120290.0,0.11242427]
[1759421564686,3.11948464,120300.0,120290.0,0.03334637]
[1759421564886,3.90780464,120300.0,120290.0,0.11642427]
[1759421565186,3.11948464,120300.0,120290.0,0.11642427]
[1759421565382,2.62013364,120300.0,120290.0,0.11242427]
[1759421565687,3.40833364,120300.0,120290.0,0.11642427]
[1759421565877,3.49140464,120300.0,120290.0,0.11642427]
[1759421566186,4.25563403,120300.0,120290.0,0.11242427]
[1759421566485,3.90768464,120300.0,120290.0,0.11242427]
[1759421566687,3.90768464,120300.0,120290.0,0.03234637]
[1759421566884,3.90768464,120300.0,120290.0,0.11542427]
[1759421567081,3.82453364,120300.0,120290.0,0.11642427]
[1759421567282,3.90760464,120300.0,120290.0,0.11619549]
[1759421568081,3.50724464,120300.0,120290.0,0.11619549]
[1759421568582,4.25519403,120300.0,120290.0,0.03311759]
[1759421568777,3.90724464,120300.0,120290.0,0.02811759]
[1759421568974,4.25519403,120300.0,120290.0,0.02911759]
[1759421569179,0.01628,120280.0,120270.0,0.04407794]
[1759421569377,3.85520783,120280.0,120270.0,0.04407794]
[1759421569582,3.85520783,120280.0,120270.0,0.12716964]
[1759421569979,3.42417364,120280.0,120270.0,0.12716964]
[1759421570190,3.72357433,120280.0,120260.0,0.12717104]
[1759421570480,2.70665473,120270.0,120260.0,0.0830931]
[1759421570794,2.27561364,120270.0,120260.0,0.0830931]
[1759421570984,2.25933364,120270.0,120260.0,0.0830931]
[1759421571190,0.3608,120280.0,120270.0,0.0830917]
[1759421571385,0.4924335,120280.0,120270.0,0.0989317]
[1759421571587,0.4924335,120280.0,120270.0,0.44688109]
[1759421571785,0.37708,120300.0,120290.0,0.0830778]
[1759421572085,1.16476,120300.0,120290.0,0.0830778]
[1759421572286,3.04701364,120300.0,120290.0,0.0830778]
[1759421572688,3.04705364,120300.0,120290.0,0.0830778]
[1759421572885,2.25933364,120300.0,120290.0,0.0830778]
[1759421573189,3.04681364,120300.0,120290.0,0.0860778]
[1759421573486,3.04681364,120300.0,120290.0,0.0830778]
[1759421573688,3.04681364,120300.0,120290.0,0.0870778]
[1759421574092,3.06309364,120300.0,120290.0,0.0870778]
[1759421574992,3.14616454,120300.0,120290.0,0.0870778]
[1759421575690,3.12912454,120300.0,120290.0,0.0870778]
[1759421575892,3.12912454,120300.0,120290.0,0.0910778]
[1759421576092,3.14558454,120300.0,120290.0,0.0910778]
[1759421576393,0.01646,120290.0,120280.0,0.0830793]
[1759421576595,2.27579364,120290.0,120280.0,0.0830793]
[1759421577791,2.34241144,120290.0,120280.0,0.007]
[1759421578093,0.0995517,120270.0,120260.0,0.04407794]
[1759421578300,3.14512534,120270.0,120260.0,0.04407794]
[1759421578689,0.0830986,120260.0,120250.0,0.04407794]
[1759421578888,0.0831055,120250.0,120230.0,0.94379937]
[1759421579086,3.04545364,120250.0,120240.0,0.0831124]
[1759421579283,2.91382014,120250.0,120240.0,0.0831124]
[1759421579485,3.04545364,120250.0,120240.0,0.0831124]
[1759421579890,3.12855904,120250.0,120240.0,0.0831124]
[1759421580194,3.04545364,120250.0,120240.0,0.0831124]
[1759421580390,3.12855904,120250.0,120230.0,0.14215887]
[1759421580694,2.70685533,120240.0,120230.0,6.918e-05]
[1759421580886,2.70685533,120240.0,120230.0,0.04418421]
[1759421581087,3.14482594,120240.0,120230.0,0.04418421]
[1759421581397,2.25933364,120240.0,120230.0,0.04418421]
[1759421581593,3.52820594,120240.0,120230.0,0.04418421]
[1759421581790,2.74244594,120240.0,120230.0,0.04418421]
[1759421581990,2.25933364,120240.0,120230.0,0.43113777]
[1759421582294,0.3608,120250.0,120240.0,0.0831123]
[1759421582485,1.14668,120260.0,120250.0,0.0831054]
[1759421582690,2.12770014,120260.0,120250.0,0.1271958]
[1759421582886,3.04529364,120260.0,120250.0,0.1271958]
[1759421583089,3.52839204,120260.0,120250.0,0.0440904]
[1759421583286,3.54485204,120260.0,120250.0,0.1271957]
[1759421583495,3.04513364,120260.0,120250.0,0.1271957]
[1759421584089,3.12823204,120260.0,120250.0,0.0440904]
[1759421584399,3.89348143,120260.0,120250.0,0.0440904]
[1759421584591,2.25933364,120260.0,120250.0,0.1271957]
[1759421584790,3.12943204,120260.0,120250.0,0.1271957]
[1759421584990,3.04633364,120260.0,120250.0,0.1271957]
[1759421585296,3.04933364,120260.0,120250.0,0.0831053]
[1759421585499,2.34543204,120260.0,120250.0,0.0831053]
[1759421585696,2.26233364,120260.0,120250.0,0.0831053]
[1759421585897,3.04905364,120260.0,120250.0,0.47518012]
[1759421586094,2.25933364,120260.0,120250.0,0.47518012]
[1759421586299,1.2791135,120260.0,120250.0,0.12723073]
[1759421586892,0.3608,120270.0,120260.0,0.0986585]
[1759421587194,0.3608,120270.0,120260.0,0.49073332]
[1759421587402,1.14748,120300.0,120270.0,0.0986516]
[1759421587590,1.14748,120300.0,120290.0,0.0830778]
[1759421588101,3.04729364,120300.0,120290.0,0.0830778]
[1759421588295,2.25933364,120300.0,120290.0,0.0830778]
[1759421588598,3.04721364,120300.0,120290.0,0.0830778]
[1759421589094,1.14848,120300.0,120290.0,0.83102719]
[1759421589294,1.2801135,120300.0,120290.0,0.0830778]
[1759421589596,3.05901364,120300.0,120290.0,0.0830778]
[1759421589795,3.43542303,120300.0,120290.0,0.0830778]
[1759421590000,0.5328935,120300.0,120290.0,0.0830778]
[1759421590295,3.04685364,120300.0,120290.0,0.0830778]
[1759421590497,2.25933364,120300.0,120290.0,0.0830778]
[1759421590694,3.04685364,120300.0,120290.0,0.0830778]
[1759421590891,3.04673364,120300.0,120290.0,0.0830778]
[1759421591601,3.04645364,120300.0,120290.0,0.0830778]
[1759421591795,3.14598454,120300.0,120290.0,0.0830778]
[1759421591997,3.06291364,120300.0,120290.0,0.0830778]
[1759421592994,2.35886454,120300.0,120290.0,0.0830778]
[1759421593191,3.14542454,120300.0,120290.0,0.0830778]
[1759421593391,2.35886454,120300.0,120290.0,0.0830778]
[1759421593592,0.0830778,120290.0,120280.0,0.12720802]
[1759421593901,2.70682083,120290.0,120280.0,0.12721212]
[1759421594202,2.35887144,120290.0,120280.0,0.12721212]
[1759421594400,2.35887144,120290.0,120280.0,0.0830847]
[1759421594803,3.06203364,120290.0,120280.0,0.0830847]
[1759421594995,3.06203364,120290.0,120280.0,0.12721212]
[1759421595198,3.14511144,120290.0,120280.0,0.12721212]
[1759421595498,3.14811144,120290.0,120280.0,0.12721212]
[1759421595804,0.01646,120280.0,120270.0,0.12721512]
[1759421596104,0.5919782,120280.0,120270.0,0.12721512]
[1759421596290,2.35887834,120280.0,120270.0,0.12721512]
[1759421596492,3.10682773,120280.0,120270.0,0.12721512]
[1759421596695,2.75887834,120280.0,120270.0,0.12721512]
[1759421596892,3.10682773,120280.0,120270.0,0.04412742]
[1759421597098,2.75887834,120280.0,120270.0,0.04412742]
[1759421597398,3.10682773,120280.0,120270.0,0.04412742]
[1759421597593,3.10682773,120280.0,120270.0,0.07361505]
[1759421598205,2.75887834,120280.0,120270.0,0.07361505]
[1759421598401,3.10982773,120280.0,120270.0,0.02948763]
[1759421598807,3.10682773,120280.0,120270.0,0.02948763]
[1759421599106,3.89218773,120280.0,120270.0,0.02948763]
[1759421599306,3.89518773,120280.0,120270.0,0.02948763]
[1759421599603,3.89218773,120280.0,120270.0,0.02948763]
[1759421599801,3.90418773,120280.0,120270.0,0.02948763]
[1759421600004,3.13082773,120280.0,120270.0,0.02948763]
[1759421600306,3.91590773,120280.0,120270.0,0.02948763]
[1759421601605,0.0830911,120270.0,120240.0,0.05457311]
[1759421601905,2.13593014,120250.0,120240.0,0.05457311]
[1759421602104,2.21903504,120250.0,120240.0,0.13768091]
[1759421602301,2.96698443,120250.0,120240.0,0.0831119]
[1759421602510,3.75122443,120250.0,120240.0,0.0831119]
[1759421602809,0.0995719,120240.0,120230.0,6.918e-05]
[1759421603002,2.57522143,120240.0,120230.0,6.918e-05]
[1759421603904,0.0910057,120220.0,120210.0,0.0831283]